bitfinex-derivatives/quotes_BTCF0:USTF0_20241218
["timestamp","ask_amount","ask_price","bid_price","bid_amount"]
[1734490534247,0.439793,105280.0,105270.0,0.047498]
[1734490534647,0.3923,105280.0,105270.0,0.047498]
[1734490536443,0.0315,105280.0,105270.0,0.047498]
[1734490536639,0.3923,105280.0,105270.0,0.047498]
[1734490537047,0.50276341,105280.0,105270.0,0.047498]
[1734490537243,0.53486341,105280.0,105270.0,0.047498]
[1734490537450,0.471893,105280.0,105270.0,0.047498]
[1734490538450,0.53486341,105280.0,105260.0,0.0475]
[1734490538754,0.3608,105270.0,105260.0,0.0475]
[1734490539140,0.3608,105270.0,105260.0,0.048]
[1734490540256,0.3608,105270.0,105260.0,0.0475]
[1734490540457,0.408298,105270.0,105260.0,0.0475]
[1734490541151,0.408298,105270.0,105260.0,0.048]
[1734490542157,0.408298,105270.0,105260.0,0.0475]
[1734490542543,0.3608,105270.0,105260.0,0.0475]
[1734490544656,0.3608,105270.0,105260.0,0.11047041]
[1734490545652,0.42229609,105280.0,105270.0,0.047498]
[1734490548455,0.40297204,105280.0,105270.0,0.047498]
[1734490550056,0.34957515,105280.0,105270.0,0.047498]
[1734490550261,0.34957515,105280.0,105270.0,0.079398]
[1734490551054,0.33890311,105280.0,105270.0,0.14236841]
[1734490551256,0.33890311,105280.0,105270.0,0.079398]
[1734490554565,0.33890311,105280.0,105270.0,0.047498]
[1734490555163,0.38639611,105280.0,105270.0,0.047498]
[1734490557656,0.44936652,105280.0,105270.0,0.047498]
[1734490558264,0.44936652,105280.0,105260.0,0.047501]
[1734490558562,0.3608,105270.0,105260.0,0.047501]
[1734490558753,0.408297,105270.0,105260.0,0.047501]
[1734490560971,0.3608,105270.0,105260.0,0.047501]
[1734490564268,0.37125182,105270.0,105260.0,0.047501]
[1734490565360,0.43422223,105270.0,105260.0,0.047501]
[1734490566261,0.37125182,105270.0,105260.0,0.047501]
[1734490566661,0.3608,105270.0,105260.0,0.11047141]
[1734490566858,0.3608,105270.0,105260.0,0.047501]
[1734490567065,0.40187352,105280.0,105270.0,0.047497]
[1734490567262,0.41192224,105280.0,105270.0,0.047497]
[1734490567867,0.41192224,105280.0,105270.0,0.057497]
[1734490568975,0.34895183,105280.0,105270.0,0.057497]
[1734490572165,0.33890311,105280.0,105270.0,0.12046741]
[1734490572565,0.33890311,105280.0,105270.0,0.15316741]
[1734490572772,0.3926,105290.0,105280.0,0.047493]
[1734490573166,0.3931,105290.0,105280.0,0.079293]
[1734490574173,0.3926,105290.0,105280.0,0.079293]
[1734490575175,0.3931,105290.0,105280.0,0.079293]
[1734490576270,0.46630663,105290.0,105280.0,0.047493]
[1734490576573,0.54379463,105290.0,105280.0,0.047493]
[1734490578177,0.54329463,105290.0,105280.0,0.047493]
[1734490580370,0.84329463,105290.0,105270.0,0.047496]
[1734490580569,0.3608,105280.0,105270.0,0.047496]
[1734490582372,0.43283622,105290.0,105280.0,0.047493]
[1734490583379,0.48032422,105290.0,105280.0,0.047493]
[1734490583572,0.54329463,105290.0,105280.0,0.047493]
[1734490587868,0.54329463,105290.0,105270.0,0.080696]
[1734490588184,0.3608,105280.0,105270.0,0.080696]
[1734490589374,0.42377041,105280.0,105270.0,0.080696]
[1734490590887,0.3608,105280.0,105270.0,0.080696]
[1734490591881,0.3608,105280.0,105270.0,0.17546641]
[1734490592291,0.3608,105280.0,105270.0,0.112496]
[1734490592697,0.3608,105280.0,105270.0,0.17546641]
[1734490592895,0.37103622,105290.0,105280.0,0.047493]
[1734490593577,0.3608,105290.0,105280.0,0.11046341]
[1734490593780,0.36272517,105300.0,105280.0,0.11046341]
[1734490593985,0.36272517,105300.0,105290.0,0.080588]
[1734490594288,0.36222517,105300.0,105290.0,0.080588]
[1734490594482,0.36222517,105300.0,105290.0,0.142288]
[1734490595395,0.36272517,105300.0,105290.0,0.142288]
[1734490595697,0.00192517,105300.0,105290.0,0.142288]
[1734490596086,0.00192517,105300.0,105290.0,0.20525841]
[1734490596299,0.37082152,105320.0,105300.0,0.047484]
[1734490596600,0.01002152,105320.0,105310.0,0.047479]
[1734490596809,0.00012326,105320.0,105310.0,0.047479]
[1734490596999,0.36092326,105320.0,105310.0,0.047479]
[1734490597195,0.00012326,105320.0,105310.0,0.047479]
[1734490597403,0.36092326,105320.0,105310.0,0.047479]
[1734490597605,0.00012326,105320.0,105310.0,0.047479]
[1734490597808,0.00012326,105320.0,105310.0,0.11044941]
[1734490598403,0.00012326,105320.0,105310.0,0.47124941]
[1734490607024,2.6e-07,105320.0,105310.0,0.77124941]
[1734490607317,0.3608,105340.0,105310.0,0.81872841]
[1734490607514,0.0647246,105350.0,105340.0,0.047465]
[1734490608119,0.4255246,105350.0,105340.0,0.047465]
[1734490608318,0.4255246,105350.0,105340.0,0.04753285]
[1734490609109,0.0647246,105350.0,105340.0,0.04753285]
[1734490609309,0.0325246,105350.0,105340.0,0.04753285]
[1734490609511,0.0019246,105350.0,105340.0,0.11050326]
[1734490613911,0.0019246,105350.0,105340.0,0.04753285]
[1734490615405,0.0340246,105350.0,105340.0,0.04753285]
[1734490616009,0.0340246,105350.0,105340.0,0.05753285]
[1734490618224,0.3948246,105350.0,105340.0,0.05753285]
[1734490618521,0.4743856,105350.0,105340.0,0.05753285]
[1734490618819,0.53735601,105350.0,105340.0,0.05753285]
[1734490620417,0.53735601,105350.0,105340.0,0.01006785]
[1734490621209,0.047466,105340.0,105330.0,0.047467]
[1734490621416,0.50183641,105340.0,105330.0,0.057467]
[1734490621618,0.438866,105340.0,105330.0,0.057467]
[1734490622420,0.438866,105340.0,105330.0,0.05752241]
[1734490622724,0.438866,105340.0,105330.0,0.04752241]
[1734490623315,0.50183641,105340.0,105330.0,5.541e-05]
[1734490623515,0.047473,105330.0,105310.0,0.047476]
[1734490623720,0.3914,105320.0,105310.0,0.047476]
[1734490624320,0.3914,105320.0,105310.0,0.047976]
[1734490625420,0.3914,105320.0,105310.0,0.047476]
[1734490626423,0.3914,105320.0,105310.0,0.047976]
[1734490627420,0.45437041,105320.0,105310.0,0.047476]
[1734490627624,0.047479,105310.0,105300.0,0.047483]
[1734490627825,0.408279,105310.0,105300.0,0.047483]
[1734490628427,0.439679,105310.0,105300.0,0.047483]
[1734490630619,0.3608,105310.0,105300.0,0.047483]
[1734490630822,0.3608,105310.0,105300.0,0.11045341]
[1734490631032,0.3608,105310.0,105300.0,0.047483]
[1734490631732,0.408279,105310.0,105300.0,0.047483]
[1734490632528,0.47124941,105310.0,105300.0,0.047483]
[1734490632729,0.047484,105300.0,105290.0,0.047867]
[1734490633026,0.47125441,105300.0,105290.0,0.047867]
[1734490633228,0.50185441,105300.0,105290.0,0.047867]
[1734490633423,0.438884,105300.0,105290.0,0.047867]
[1734490637019,0.50185441,105300.0,105290.0,0.047867]
[1734490637831,0.50185441,105300.0,105290.0,0.00038]
[1734490638736,0.54396054,105300.0,105290.0,0.00038]
[1734490639330,0.54396054,105300.0,105290.0,0.00088]
[1734490639727,0.48099013,105300.0,105290.0,0.048368]
[1734490640127,0.54396054,105300.0,105290.0,0.048368]
[1734490642032,0.54396054,105300.0,105290.0,0.00088]
[1734490645133,0.60693095,105300.0,105290.0,0.00088]
[1734490645435,0.54396054,105300.0,105290.0,0.00088]
[1734490646635,0.60693095,105300.0,105290.0,0.00088]
[1734490647332,0.54396054,105300.0,105290.0,0.00088]
[1734490647528,0.45039013,105300.0,105290.0,0.048369]
[1734490647731,0.51336054,105300.0,105290.0,0.048369]
[1734490648328,0.51336054,105300.0,105290.0,0.047869]
[1734490648631,0.45039013,105300.0,105290.0,0.047869]
[1734490648837,0.45039013,105300.0,105290.0,0.078769]
[1734490651335,0.51336054,105300.0,105290.0,0.078389]
[1734490654231,0.87416054,105300.0,105290.0,0.078389]
[1734490655342,0.73130613,105300.0,105290.0,0.078389]
[1734490655941,0.00970613,105300.0,105290.0,0.078389]
[1734490656250,0.3608,105300.0,105290.0,0.078389]
[1734490656447,0.408285,105300.0,105290.0,0.078389]
[1734490657943,0.3608,105300.0,105290.0,0.078389]
[1734490658136,0.3608,105300.0,105290.0,0.111389]
[1734490658540,0.3608,105300.0,105290.0,0.078389]
[1734490660040,0.13928982,105310.0,105290.0,0.078389]
[1734490660250,0.3608,105300.0,105290.0,0.078389]
[1734490660644,0.42377041,105300.0,105290.0,0.047489]
[1734490660949,0.45687041,105300.0,105290.0,0.047489]
[1734490661141,0.441385,105300.0,105290.0,0.047489]
[1734490661443,0.50435541,105300.0,105290.0,0.047489]
[1734490661950,0.53755541,105300.0,105290.0,0.047489]
[1734490663439,0.49007041,105300.0,105280.0,0.111293]
[1734490663645,0.47125941,105290.0,105280.0,0.047493]
[1734490668851,0.48135984,105290.0,105280.0,0.047493]
[1734490670147,0.41838943,105290.0,105280.0,0.047493]
[1734490670345,0.41838943,105290.0,105280.0,0.080593]
[1734490672050,0.48135984,105290.0,105280.0,0.047493]
[1734490676058,0.047494,105280.0,105270.0,0.047997]
[1734490676262,0.50436441,105280.0,105270.0,0.047997]
[1734490676561,0.50436441,105280.0,105270.0,0.047497]
[1734490677359,0.50436441,105280.0,105270.0,0.047997]
[1734490678354,0.50436441,105280.0,105270.0,0.047497]
[1734490682262,0.441394,105280.0,105270.0,0.047497]
[1734490682677,0.43702875,105290.0,105270.0,0.047497]
[1734490682874,0.49999916,105290.0,105280.0,0.047494]
[1734490683082,0.43702875,105290.0,105280.0,0.047494]
[1734490683377,0.49999916,105290.0,105280.0,0.047494]
[1734490687581,0.047494,105280.0,105270.0,0.080298]
[1734490687883,0.50326441,105280.0,105270.0,0.080298]
[1734490689677,0.50326441,105280.0,105270.0,0.047498]
[1734490690791,0.53336441,105280.0,105270.0,0.047498]
[1734490691589,0.53336441,105280.0,105260.0,0.081202]
[1734490691784,0.42377041,105270.0,105260.0,0.048002]
[1734490693379,0.42377041,105270.0,105260.0,0.047502]
[1734490694979,0.3608,105270.0,105260.0,0.047502]
[1734490695683,0.47126841,105270.0,105260.0,0.047502]
[1734490696082,0.50376841,105270.0,105260.0,0.047502]
[1734490699790,0.047503,105260.0,105250.0,0.047506]
[1734490699984,0.50357341,105260.0,105250.0,0.047506]
[1734490700386,0.50357341,105260.0,105250.0,0.048006]
[1734490701601,0.50357341,105260.0,105250.0,0.047506]
[1734490702591,0.50357341,105260.0,105250.0,0.048006]
[1734490703094,0.50357341,105260.0,105250.0,0.0005]
[1734490703280,0.53677341,105260.0,105250.0,0.0005]
[1734490704390,0.53677341,105260.0,105240.0,0.110311]
[1734490704597,0.47127741,105250.0,105240.0,0.110311]
[1734490705397,0.47127741,105250.0,105240.0,0.110811]
[1734490706291,0.47127741,105250.0,105240.0,0.079011]
[1734490706494,0.47127741,105250.0,105240.0,0.078511]
[1734490707397,0.47127741,105250.0,105240.0,0.079011]
[1734490708597,0.47127741,105250.0,105240.0,0.078511]
[1734490709592,0.47127741,105250.0,105240.0,0.079011]
[1734490710194,0.3931,105260.0,105240.0,0.12477041]
[1734490710388,0.3931,105260.0,105250.0,0.047507]
[1734490712197,0.45607041,105260.0,105250.0,0.047507]
[1734490713086,0.46595092,105260.0,105250.0,0.047507]
[1734490714398,0.40298051,105260.0,105250.0,0.047507]
[1734490714602,0.37068051,105260.0,105250.0,0.047507]
[1734490714990,0.38009063,105270.0,105260.0,0.047503]
[1734490715197,0.38009063,105270.0,105260.0,0.078503]
[1734490715385,0.38009063,105270.0,105260.0,0.142703]
[1734490716897,0.38009063,105270.0,105260.0,0.152703]
[1734490717593,0.3608,105270.0,105260.0,0.152703]
[1734490718795,0.37051362,105270.0,105260.0,0.152703]
[1734490719298,0.48098203,105270.0,105260.0,0.057503]
[1734490719801,0.51408203,105270.0,105260.0,0.057503]
[1734490720893,0.51408203,105270.0,105260.0,0.047503]
[1734490724406,0.51408203,105270.0,105250.0,0.047505]
[1734490724601,0.45617041,105260.0,105250.0,0.047505]
[1734490725601,0.440703,105260.0,105250.0,0.047505]
[1734490725907,0.3932,105260.0,105250.0,0.047505]
[1734490726404,0.45617041,105260.0,105250.0,0.047505]
[1734490729613,0.3608,105260.0,105250.0,0.047505]
[1734490730407,0.42377041,105260.0,105250.0,0.047505]
[1734490730810,0.0321,105260.0,105250.0,0.047505]
[1734490731005,0.09507041,105260.0,105250.0,0.047505]
[1734490731219,0.3929,105260.0,105250.0,0.047505]
[1734490731607,0.0321,105260.0,105250.0,0.047505]
[1734490732215,0.3929,105260.0,105250.0,0.047505]
[1734490732512,0.50019151,105270.0,105250.0,0.047505]
[1734490732820,0.50019151,105270.0,105260.0,0.047503]
[1734490733002,0.4372211,105270.0,105260.0,0.047503]
[1734490733609,0.50019151,105270.0,105260.0,0.047503]
[1734490736216,0.53299151,105270.0,105260.0,0.047503]
[1734490736813,0.53299151,105270.0,105240.0,0.0962]
[1734490737013,0.45627041,105260.0,105250.0,0.047505]
[1734490738014,0.50377341,105260.0,105250.0,0.047505]
[1734490741121,0.440803,105260.0,105250.0,0.047505]
[1734490741321,0.50377341,105260.0,105250.0,0.047505]
[1734490742320,0.53687341,105260.0,105250.0,0.047505]
[1734490747932,0.55659152,105260.0,105250.0,0.047505]
[1734490755531,0.473903,105260.0,105250.0,0.047505]
[1734490755741,0.50908852,105260.0,105250.0,0.047505]
[1734490757030,0.55659152,105260.0,105250.0,0.047505]
[1734490762645,0.473903,105260.0,105250.0,0.047505]
[1734490762839,0.55659152,105260.0,105250.0,0.047505]
[1734490763451,0.55659152,105260.0,105250.0,0.04707515]
[1734490763641,0.4264,105260.0,105250.0,0.04707515]
[1734490763939,0.46774426,105260.0,105250.0,0.04707515]
[1734490764143,0.50908852,105260.0,105250.0,0.04707515]
[1734490764734,0.55659152,105260.0,105250.0,0.04707515]
[1734490768847,0.51524726,105260.0,105250.0,0.04707515]
[1734490769742,0.55659152,105260.0,105250.0,0.04707515]
[1734490772635,0.43464426,105260.0,105250.0,0.04707515]
[1734490772834,0.3608,105260.0,105250.0,0.04707515]
[1734490773043,0.40214426,105260.0,105250.0,0.07737515]
[1734490774650,0.04134426,105260.0,105250.0,0.07737515]
[1734490776146,0.40214426,105260.0,105250.0,0.07737515]
[1734490777442,0.04134426,105260.0,105250.0,0.07737515]
[1734490777647,0.40214426,105260.0,105250.0,0.07737515]
[1734490779243,0.40214426,105260.0,105250.0,0.08697084]
[1734490781754,0.44348852,105260.0,105250.0,0.04707515]
[1734490781949,0.52389152,105260.0,105250.0,0.04707515]
[1734490782844,0.55439152,105260.0,105250.0,0.04707515]
[1734490786551,0.43504426,105260.0,105250.0,0.04707515]
[1734490787753,0.43106536,105270.0,105260.0,0.047503]
[1734490788056,0.37051362,105270.0,105260.0,0.080003]
[1734490788551,0.01021362,105270.0,105260.0,0.112803]
[1734490788761,0.04184426,105270.0,105260.0,0.112803]
[1734490789652,0.04134426,105270.0,105260.0,0.112803]
[1734490790651,0.04184426,105270.0,105260.0,0.112803]
[1734490791159,0.0005,105270.0,105260.0,0.15414726]
[1734490791665,0.43314426,105280.0,105260.0,0.15414726]
[1734490791666,0.43314426,105280.0,105270.0,0.047499]
[1734490792953,0.52198252,105280.0,105270.0,0.047499]
[1734490793567,0.53180826,105280.0,105270.0,0.047499]
[1734490796262,0.047499,105270.0,105260.0,0.047502]
[1734490796565,0.51134326,105270.0,105260.0,0.047502]
[1734490797261,0.51134326,105270.0,105240.0,0.47321]
[1734490797262,0.55268752,105270.0,105250.0,0.047507]
[1734490797460,0.52299252,105260.0,105250.0,0.047507]
[1734490804360,0.53270632,105260.0,105250.0,0.047507]
[1734490809359,0.44385806,105260.0,105250.0,0.047507]
[1734490809665,0.3705138,105260.0,105250.0,0.08885126]
[1734490809868,0.3608,105270.0,105250.0,0.44965126]
[1734490810169,0.40214426,105270.0,105260.0,0.080103]
[1734490810763,0.3608,105270.0,105260.0,0.111103]
[1734490810963,0.3608,105270.0,105260.0,0.143303]
[1734490811165,0.40214426,105270.0,105260.0,0.143303]
[1734490811972,0.41166488,105270.0,105260.0,0.143303]
[1734490813467,0.41166488,105270.0,105260.0,0.047503]
[1734490813662,0.45916388,105270.0,105260.0,0.047503]
[1734490814373,0.48956388,105270.0,105260.0,0.047503]
[1734490815069,0.48340914,105270.0,105240.0,0.0957]
[1734490815276,0.48034826,105260.0,105250.0,0.047508]
[1734490816568,0.047508,105250.0,105240.0,0.048009]
[1734490816763,0.44965226,105250.0,105240.0,0.048009]
[1734490817070,0.48105226,105250.0,105240.0,0.048009]
[1734490817661,0.48105226,105250.0,105240.0,0.047509]
[1734490818670,0.48105226,105250.0,105240.0,0.048009]
[1734490819974,0.50271336,105250.0,105240.0,0.048009]
[1734490821563,0.56571872,105250.0,105230.0,0.047516]
[1734490821765,0.047521,105220.0,105210.0,0.0322]
[1734490821971,0.42380536,105220.0,105200.0,0.1313]
[1734490822175,0.47133136,105210.0,105200.0,0.147529]
[1734490822376,0.50423136,105210.0,105200.0,0.1]
[1734490823172,0.56723672,105210.0,105200.0,0.1]
[1734490823572,0.59733672,105210.0,105200.0,0.1]
[1734490824677,0.50423136,105210.0,105200.0,0.1]
[1734490824872,0.441226,105210.0,105200.0,0.14753]
[1734490825273,0.3937,105210.0,105200.0,0.14753]
[1734490825476,0.44879833,105220.0,105210.0,0.047526]
[1734490825477,6.864e-05,105220.0,105210.0,0.047526]
[1734490825678,6.864e-05,105220.0,105210.0,0.50653136]
[1734490825980,2.55e-06,105220.0,105210.0,0.50659745]
[1734490826181,2.55e-06,105220.0,105210.0,0.50439209]
[1734490826377,2.55e-06,105220.0,105210.0,0.86739745]
[1734490828082,2.55e-06,105220.0,105210.0,0.80439209]
[1734490828288,2.55e-06,105220.0,105210.0,0.50439209]
[1734490831488,2.55e-06,105220.0,105210.0,0.14359209]
[1734490833193,0.42380791,105220.0,105210.0,0.14359209]
[1734490833386,0.36080255,105220.0,105210.0,0.14359209]
[1734490834595,0.36080255,105220.0,105210.0,0.14409209]
[1734490834792,0.42380791,105220.0,105210.0,0.04809209]
[1734490835097,0.47132891,105220.0,105210.0,0.04809209]
[1734490837594,0.47132891,105220.0,105210.0,0.00056609]
[1734490837786,0.50332891,105220.0,105210.0,0.00056609]
[1734490839295,0.39280255,105220.0,105210.0,0.04809209]
[1734490840700,0.50332891,105220.0,105210.0,0.04809209]
[1734490841203,0.50332891,105220.0,105210.0,0.05809209]
[1734490841698,0.50332891,105220.0,105210.0,0.01056609]
[1734490842295,0.53612891,105220.0,105210.0,0.01056609]
[1734490844690,0.047526,105210.0,105200.0,0.1]
[1734490844900,0.56503672,105210.0,105200.0,0.1]
[1734490845203,0.86503672,105210.0,105200.0,0.1]
[1734490845498,0.56503672,105210.0,105200.0,0.1]
[1734490845693,0.56503672,105210.0,105200.0,0.1005]
[1734490846705,0.56503672,105210.0,105200.0,0.1]
[1734490847707,0.56503672,105210.0,105200.0,0.1005]
[1734490848701,0.56503672,105210.0,105200.0,0.1]
[1734490849600,0.56503672,105210.0,105200.0,0.1005]
[1734490849991,0.50203136,105210.0,105200.0,0.14803]
[1734490850803,0.56503672,105210.0,105200.0,0.1005]
[1734490851704,0.5745753,105210.0,105200.0,0.1005]
[1734490852997,0.8745753,105210.0,105200.0,0.1005]
[1734490854305,0.047539,105180.0,105170.0,0.047543]
[1734490854502,0.408339,105180.0,105170.0,0.047543]
[1734490854811,0.47134436,105180.0,105170.0,0.047543]
[1734490857204,0.047548,105160.0,105150.0,0.05718568]
[1734490857408,0.408348,105160.0,105150.0,0.047552]
[1734490857798,0.47135336,105160.0,105150.0,0.047552]
[1734490859412,0.047553,105150.0,105140.0,0.080457]
[1734490859607,0.47135836,105150.0,105140.0,0.080457]
[1734490861005,0.408353,105150.0,105140.0,0.080457]
[1734490862613,0.3608,105150.0,105140.0,0.080457]
[1734490862800,0.3608,105150.0,105140.0,0.047557]
[1734490863109,0.047561,105140.0,105130.0,0.047562]
[1734490863406,0.047561,105140.0,105120.0,0.111215]
[1734490863407,0.50386636,105140.0,105120.0,0.111215]
[1734490863715,0.3608,105130.0,105120.0,0.111215]
[1734490864005,0.3608,105140.0,105130.0,0.047562]
[1734490864208,0.36089583,105150.0,105140.0,0.047558]
[1734490864404,0.36089583,105150.0,105140.0,0.078658]
[1734490864604,0.36089583,105150.0,105140.0,0.079158]
[1734490865414,0.3801498,105160.0,105140.0,0.079158]
[1734490865708,0.3608,105170.0,105140.0,0.079158]
[1734490865709,0.42380536,105170.0,105160.0,0.047548]
[1734490866008,0.06300536,105170.0,105160.0,0.047548]
[1734490866213,0.42380536,105170.0,105160.0,0.047548]
[1734490866406,0.42380536,105170.0,105160.0,0.04764383]
[1734490868010,0.06300536,105170.0,105160.0,0.04764383]
[1734490868717,0.44299105,105170.0,105160.0,0.04764383]
[1734490869018,0.08219105,105170.0,105160.0,0.04764383]
[1734490869715,0.01918569,105170.0,105160.0,0.04764383]
[1734490870102,0.37998569,105170.0,105160.0,0.04764383]
[1734490870307,0.01918569,105170.0,105160.0,0.04764383]
[1734490870506,0.00984019,105180.0,105170.0,0.047544]
[1734490870703,0.37064019,105180.0,105170.0,0.079544]
[1734490871611,0.43364555,105180.0,105170.0,0.079544]
[1734490873404,0.54419391,105180.0,105160.0,0.04764283]
[1734490873621,0.42380536,105170.0,105160.0,0.04764283]
[1734490874825,0.3608,105170.0,105160.0,0.04764283]
[1734490875720,0.50041606,105180.0,105160.0,0.04764283]
[1734490876314,0.50041606,105180.0,105160.0,9.583e-05]
[1734490876512,0.50041606,105180.0,105170.0,0.047544]
[1734490876818,0.45287306,105180.0,105170.0,0.047544]
[1734490877818,0.3903677,105180.0,105170.0,0.047544]
[1734490878726,0.45287306,105180.0,105170.0,0.047544]
[1734490879608,0.45337306,105180.0,105170.0,0.047544]
[1734490880207,0.50091206,105180.0,105170.0,0.047544]
[1734490884910,0.45337306,105180.0,105170.0,0.047544]
[1734490885121,0.3903677,105180.0,105170.0,0.047544]
[1734490888330,0.45337306,105180.0,105170.0,0.047544]
[1734490888526,0.53301206,105180.0,105170.0,0.047544]
[1734490888715,0.56321206,105180.0,105170.0,0.047544]
[1734490889118,0.59431206,105180.0,105170.0,0.047544]
[1734490889318,0.047544,105170.0,105160.0,0.04764383]
[1734490889519,0.47134936,105170.0,105160.0,0.04764383]
[1734490892118,0.3608,105170.0,105160.0,0.04764383]
[1734490893130,0.4535677,105180.0,105170.0,0.047544]
[1734490893516,0.4214677,105180.0,105170.0,0.047544]
[1734490893717,0.40224019,105180.0,105170.0,0.047544]
[1734490893924,0.01034019,105180.0,105170.0,0.471144]
[1734490894232,0.01034019,105180.0,105170.0,0.143044]
[1734490894728,0.00984019,105180.0,105170.0,0.143044]
[1734490894933,8.963e-05,105180.0,105170.0,0.503844]
[1734490895336,8.963e-05,105180.0,105170.0,0.86684936]
[1734490895536,8.963e-05,105180.0,105170.0,0.803844]
[1734490895739,8.963e-05,105180.0,105170.0,0.503844]
[1734490896733,8.963e-05,105180.0,105170.0,0.143044]
[1734490896934,0.36088963,105180.0,105170.0,0.143044]
[1734490898427,0.36088963,105180.0,105170.0,0.110344]
[1734490898819,8.963e-05,105180.0,105170.0,0.110344]
[1734490899021,0.36088963,105180.0,105170.0,0.110344]
[1734490899226,0.47143399,105180.0,105170.0,0.047544]
[1734490899425,0.50443399,105180.0,105170.0,0.047544]
[1734490899623,0.047544,105170.0,105160.0,0.04814383]
[1734490899827,0.47134936,105170.0,105160.0,0.04814383]
[1734490900325,0.408344,105170.0,105160.0,0.04814383]
[1734490900838,0.47134936,105170.0,105160.0,0.00059583]
[1734490905438,0.4810561,105170.0,105160.0,0.00059583]
[1734490905735,0.37050674,105170.0,105160.0,0.04814383]
[1734490905939,0.00970674,105170.0,105160.0,0.04814383]
[1734490906132,0.06300536,105170.0,105160.0,0.04814383]
[1734490906432,0.06300536,105170.0,105160.0,0.08004383]
[1734490906636,0.92037499,105180.0,105170.0,0.047544]
[1734490907626,0.88797499,105180.0,105170.0,0.047544]
[1734490907824,0.50443499,105180.0,105170.0,0.047544]
[1734490908825,0.51416511,105180.0,105170.0,0.047544]
[1734490909531,0.37061975,105180.0,105170.0,0.047544]
[1734490909938,0.07282511,105180.0,105170.0,0.047544]
[1734490910529,0.00981975,105180.0,105170.0,0.047544]
[1734490911538,8.963e-05,105180.0,105170.0,0.047544]
[1734490913441,8.963e-05,105180.0,105170.0,0.408344]
[1734490913941,8.963e-05,105180.0,105170.0,0.047544]
[1734490914637,0.36088963,105180.0,105170.0,0.047544]
[1734490914837,8.963e-05,105180.0,105170.0,0.047544]
[1734490917247,8.963e-05,105180.0,105170.0,0.05731531]
[1734490920146,8.963e-05,105180.0,105170.0,0.047544]
[1734490920350,0.03148963,105180.0,105170.0,0.047544]
[1734490924849,0.45529499,105180.0,105160.0,0.09789583]
[1734490925038,0.47134936,105170.0,105160.0,0.00059583]
[1734490925543,0.50444936,105170.0,105160.0,0.00059583]
[1734490925745,0.50444936,105170.0,105160.0,9.583e-05]
[1734490926740,0.50444936,105170.0,105160.0,0.00059583]
[1734490929441,0.441444,105170.0,105160.0,0.00059583]
[1734490929642,0.50444936,105170.0,105160.0,9.583e-05]
[1734490930450,0.047548,105160.0,105150.0,0.01]
[1734490930653,0.47135336,105160.0,105150.0,0.0105]
[1734490931744,0.47135336,105160.0,105150.0,0.01]
[1734490931947,0.408348,105160.0,105150.0,0.01]
[1734490932252,0.47135336,105160.0,105150.0,0.01]
[1734490932456,0.3608,105160.0,105150.0,0.01]
[1734490932752,0.00058963,105180.0,105170.0,0.047544]
[1734490932953,0.00058963,105180.0,105170.0,0.14144936]
[1734490933146,0.00058963,105180.0,105170.0,0.50224936]
[1734490933851,0.01118063,105190.0,105170.0,0.50224936]
[1734490934157,0.0014269,105190.0,105180.0,0.047539]
[1734490934455,0.3608,105200.0,105190.0,0.047535]
[1734490934648,0.42380536,105200.0,105190.0,0.047535]
[1734490934845,0.42380536,105200.0,105190.0,0.04762463]
[1734490936162,0.3608,105200.0,105190.0,0.04762463]
[1734490937653,0.42380536,105200.0,105190.0,0.04762463]
[1734490938047,0.47133536,105200.0,105190.0,0.04762463]
[1734490939756,0.47183536,105200.0,105190.0,0.04762463]
[1734490940855,0.50353536,105200.0,105190.0,0.04762463]
[1734490941255,0.50353536,105200.0,105190.0,8.963e-05]
[1734490941664,0.80353536,105200.0,105190.0,8.963e-05]
[1734490941858,0.04754,105180.0,105170.0,0.047543]
[1734490942058,0.47134536,105180.0,105170.0,0.047543]
[1734490944867,0.3608,105180.0,105170.0,0.047543]
[1734490945066,0.441436,105190.0,105180.0,0.047539]
[1734490945760,0.3939,105190.0,105180.0,0.047539]
[1734490947566,0.40360579,105190.0,105180.0,0.047539]
[1734490949867,0.3608,105190.0,105180.0,0.047539]
[1734490950462,0.47134036,105190.0,105180.0,0.047539]
[1734490955363,0.49029536,105190.0,105180.0,0.047539]
[1734490955770,0.49079536,105190.0,105180.0,0.047539]
[1734490956870,0.49029536,105190.0,105180.0,0.047539]
[1734490957056,0.49029536,105190.0,105170.0,0.048043]
[1734490957057,0.047539,105180.0,105170.0,0.048043]
[1734490957258,0.47134436,105180.0,105170.0,0.048043]
[1734490957458,0.53514436,105180.0,105170.0,0.0005]
[1734490957965,0.047544,105170.0,105160.0,0.047547]
[1734490958163,0.50264936,105170.0,105150.0,0.01]
[1734490958366,0.50264936,105170.0,105150.0,0.057552]
[1734490958367,0.47135336,105160.0,105150.0,0.057552]
[1734490962276,0.47135336,105160.0,105150.0,0.01]
[1734490962867,0.48106028,105160.0,105150.0,0.01]
[1734490963272,0.48113481,105160.0,105150.0,0.01]
[1734490966481,0.84414017,105160.0,105150.0,0.01]
[1734490966675,0.78113481,105160.0,105150.0,0.01]
[1734490968879,0.43358681,105160.0,105150.0,0.01]
[1734490969069,0.37058145,105160.0,105150.0,0.057553]
[1734490969775,0.43358681,105160.0,105150.0,0.058053]
[1734490972178,0.37058145,105160.0,105150.0,0.058053]
[1734490972682,7.453e-05,105160.0,105150.0,0.058053]
[1734490972980,7.453e-05,105160.0,105150.0,0.418853]
[1734490973182,0.3608,105170.0,105160.0,0.047548]
[1734490973478,0.0005,105180.0,105170.0,0.047544]
[1734490973689,0.0005,105180.0,105170.0,0.53614936]
[1734490973878,0.00142689,105190.0,105180.0,0.047539]
[1734490974379,0.00142689,105190.0,105180.0,0.04761353]
[1734490978186,0.36222689,105190.0,105180.0,0.04761353]
[1734490982581,0.42523225,105190.0,105180.0,0.04761353]
[1734490983284,0.47276725,105190.0,105180.0,0.04761353]
[1734490983585,0.53434572,105190.0,105180.0,7.453e-05]
[1734490983783,0.59694572,105190.0,105180.0,7.453e-05]
[1734490984289,0.89694572,105190.0,105180.0,7.453e-05]
[1734490984492,0.59694572,105190.0,105180.0,7.453e-05]
[1734490984899,0.59744572,105190.0,105180.0,7.453e-05]
[1734490985185,0.047548,105160.0,105150.0,0.057552]
[1734490985486,0.47135336,105160.0,105150.0,0.057552]